[Event "Late-Titled-Tuesday-Blitz-March-26-2024"]
[Site "Chess.com"]
[Date "2024.03.26"]
[Round "9"]
[White "Defenstrator"]
[Black "giovannibrandao7"]
[Result "0-1"]
[WhiteElo "2430"]
[BlackElo "2160"]
[TimeControl "180+1"]
[EndTime "15:44:44 PDT"]
[Termination "giovannibrandao7 won by checkmate"]

1. f3 {[%clk 0:03:00]} 1... d5 {[%clk 0:02:42.2]} 2. c3 {[%clk 0:02:59.9]} 2...
c5 {[%clk 0:02:42]} 3. Kf2 {[%clk 0:03:00.5]} 3... Nc6 {[%clk 0:02:41.8]} 4. Ke3
{[%clk 0:03:01]} 4... f6 {[%clk 0:02:41.9]} 5. Kd3 {[%clk 0:02:58.7]} 5... Kf7
{[%clk 0:02:42.4]} 6. Kc2 {[%clk 0:02:59.2]} 6... Ke6 {[%clk 0:02:42.9]} 7. Qe1
{[%clk 0:02:59.7]} 7... Qe8 {[%clk 0:02:43.4]} 8. Kd1 {[%clk 0:03:00.2]} 8...
Kd7 {[%clk 0:02:44]} 9. e4 {[%clk 0:03:00.3]} 9... e6 {[%clk 0:02:41.4]} 10. Bb5
{[%clk 0:02:56.1]} 10... Kd8 {[%clk 0:02:39.4]} 11. d4 {[%clk 0:02:55.2]} 11...
a6 {[%clk 0:02:33.4]} 12. Bxc6 {[%clk 0:02:54.3]} 12... Qxc6 {[%clk 0:02:33.1]}
13. Bf4 {[%clk 0:02:51]} 13... Bd6 {[%clk 0:02:20]} 14. Bxd6 {[%clk 0:02:50]}
14... Qxd6 {[%clk 0:02:20.1]} 15. Nd2 {[%clk 0:02:45.2]} 15... Bd7 {[%clk
0:02:16.8]} 16. Ne2 {[%clk 0:02:45.3]} 16... Ne7 {[%clk 0:02:11.5]} 17. Rc1
{[%clk 0:02:41.1]} 17... c4 {[%clk 0:02:01.4]} 18. Kc2 {[%clk 0:02:40.4]} 18...
b5 {[%clk 0:02:00]} 19. Kb1 {[%clk 0:02:39.7]} 19... a5 {[%clk 0:01:59.3]} 20.
f4 {[%clk 0:02:35.8]} 20... b4 {[%clk 0:01:41.6]} 21. e5 {[%clk 0:02:26.3]}
21... Qb6 {[%clk 0:01:38.7]} 22. exf6 {[%clk 0:02:21.9]} 22... gxf6 {[%clk
0:01:37.8]} 23. Qh4 {[%clk 0:02:22.4]} 23... bxc3 {[%clk 0:01:25.4]} 24. Nxc3
{[%clk 0:02:19.1]} 24... Qxd4 {[%clk 0:01:22.9]} 25. Rhd1 {[%clk 0:02:17.1]}
25... Nf5 {[%clk 0:01:20.3]} 26. Qh5 {[%clk 0:02:10.1]} 26... Qxf4 {[%clk
0:01:15.3]} 27. Nde4 {[%clk 0:01:55.8]} 27... Ke7 {[%clk 0:01:01.9]} 28. Rf1
{[%clk 0:01:49.9]} 28... Qh6 {[%clk 0:00:53.8]} 29. Rxf5 {[%clk 0:01:49.2]}
29... Qxh5 {[%clk 0:00:50.1]} 30. Rxh5 {[%clk 0:01:49.4]} 30... dxe4 {[%clk
0:00:50.6]} 31. Nxe4 {[%clk 0:01:49.9]} 31... f5 {[%clk 0:00:26.5]} 32. Nc5
{[%clk 0:01:44.4]} 32... Rac8 {[%clk 0:00:23.8]} 33. Nb7 {[%clk 0:01:36.9]}
33... Bc6 {[%clk 0:00:18.3]} 34. Nxa5 {[%clk 0:01:35.4]} 34... Bxg2 {[%clk
0:00:18.6]} 35. Rxc4 {[%clk 0:01:27.2]} 35... Rxc4 {[%clk 0:00:18.1]} 36. Nxc4
{[%clk 0:01:27.7]} 36... Be4+ {[%clk 0:00:18.5]} 37. Kc1 {[%clk 0:01:27.6]}
37... h6 {[%clk 0:00:17.3]} 38. Kd2 {[%clk 0:01:26.6]} 38... Kf6 {[%clk
0:00:17.5]} 39. Ke3 {[%clk 0:01:19.7]} 39... Bd5 {[%clk 0:00:10.7]} 40. Nd2
{[%clk 0:01:16.2]} 40... Kg6 {[%clk 0:00:06.1]} 41. Rh4 {[%clk 0:01:15.9]} 41...
e5 {[%clk 0:00:05.7]} 42. Ra4 {[%clk 0:01:13.7]} 42... f4+ {[%clk 0:00:05.8]}
43. Kf2 {[%clk 0:01:14.2]} 43... Kf5 {[%clk 0:00:06.2]} 44. Nf3 {[%clk 0:01:12]}
44... Bxf3 {[%clk 0:00:04.6]} 45. Kxf3 {[%clk 0:01:12.9]} 45... Rd8 {[%clk
0:00:05]} 46. Rc4 {[%clk 0:01:05.3]} 46... Rd2 {[%clk 0:00:03.9]} 47. Rb4 {[%clk
0:01:01.5]} 47... e4+ {[%clk 0:00:03.5]} 48. Rxe4 {[%clk 0:00:59.6]} 48... Rd3+
{[%clk 0:00:03.9]} 49. Ke2 {[%clk 0:00:58.8]} 49... Kxe4 {[%clk 0:00:04.3]} 50.
b4 {[%clk 0:00:59.6]} 50... f3+ {[%clk 0:00:04.4]} 51. Kf2 {[%clk 0:01:00]}
51... Rd2+ {[%clk 0:00:04.9]} 52. Kg3 {[%clk 0:01:00.3]} 52... Rg2+ {[%clk
0:00:05.2]} 53. Kh3 {[%clk 0:01:00.2]} 53... Rg1 {[%clk 0:00:05.8]} 54. b5
{[%clk 0:00:59.4]} 54... f2 {[%clk 0:00:06.7]} 55. b6 {[%clk 0:01:00.3]} 55...
f1=Q+ {[%clk 0:00:07.1]} 56. Kh4 {[%clk 0:01:00.7]} 56... Qf4+ {[%clk
0:00:07.2]} 57. Kh5 {[%clk 0:01:01.3]} 57... Qg5# {[%clk 0:00:07.4]} 0-1

[Event "Late-Titled-Tuesday-Blitz-March-26-2024"]
[Site "Chess.com"]
[Date "2024.03.26"]
[Round "9"]
[White "kai_nov"]
[Black "JaackCamel"]
[Result "1-0"]
[WhiteElo "2338"]
[BlackElo "2187"]
[TimeControl "180+1"]
[EndTime "15:44:46 PDT"]
[Termination "kai_nov won on time"]

1. d4 {[%clk 0:03:00.9]} 1... d5 {[%clk 0:02:57.2]} 2. c4 {[%clk 0:03:00.7]}
2... e6 {[%clk 0:02:56.8]} 3. Nc3 {[%clk 0:03:00.4]} 3... c6 {[%clk 0:02:56.4]}
4. Bf4 {[%clk 0:02:59.6]} 4... dxc4 {[%clk 0:02:55.5]} 5. e3 {[%clk 0:02:59.6]}
5... Nf6 {[%clk 0:02:38]} 6. Bxc4 {[%clk 0:02:56.3]} 6... b5 {[%clk 0:02:35.4]}
7. Bd3 {[%clk 0:02:51.2]} 7... a6 {[%clk 0:02:35.3]} 8. Nf3 {[%clk 0:02:43.4]}
8... Nbd7 {[%clk 0:02:35]} 9. O-O {[%clk 0:02:39.4]} 9... c5 {[%clk 0:02:34.7]}
10. a4 {[%clk 0:02:30.2]} 10... b4 {[%clk 0:02:29.3]} 11. Ne4 {[%clk 0:02:23.6]}
11... Bb7 {[%clk 0:01:57.7]} 12. Nd6+ {[%clk 0:02:14.2]} 12... Bxd6 {[%clk
0:01:57.1]} 13. Bxd6 {[%clk 0:02:15.1]} 13... Qb6 {[%clk 0:01:56.1]} 14. dxc5
{[%clk 0:02:03.4]} 14... Nxc5 {[%clk 0:01:51.3]} 15. Be5 {[%clk 0:01:06]} 15...
Rd8 {[%clk 0:01:26.8]} 16. Nd4 {[%clk 0:00:58.2]} 16... O-O {[%clk 0:01:03.9]}
17. a5 {[%clk 0:00:55.2]} 17... Qa7 {[%clk 0:00:53.7]} 18. Bxf6 {[%clk
0:00:41.5]} 18... gxf6 {[%clk 0:00:53.4]} 19. Bc2 {[%clk 0:00:20.4]} 19... Rd5
{[%clk 0:00:33.9]} 20. Qe2 {[%clk 0:00:13.2]} 20... Rg5 {[%clk 0:00:31.5]} 21.
f3 {[%clk 0:00:12.5]} 21... Kh8 {[%clk 0:00:24.1]} 22. Rad1 {[%clk 0:00:10]}
22... Rfg8 {[%clk 0:00:23.5]} 23. Rf2 {[%clk 0:00:10.3]} 23... Bd5 {[%clk
0:00:18.8]} 24. e4 {[%clk 0:00:09]} 24... Bb7 {[%clk 0:00:16.9]} 25. g3 {[%clk
0:00:08.7]} 25... b3 {[%clk 0:00:12.7]} 26. Bb1 {[%clk 0:00:07.7]} 26... Qa8
{[%clk 0:00:11.2]} 27. Kg2 {[%clk 0:00:07]} 27... Qc8 {[%clk 0:00:10.8]} 28. Rc1
{[%clk 0:00:05.7]} 28... Qf8 {[%clk 0:00:10.3]} 29. Rc3 {[%clk 0:00:04.9]} 29...
Ba8 {[%clk 0:00:07.2]} 30. f4 {[%clk 0:00:04.7]} 30... R5g7 {[%clk 0:00:05.8]}
31. Kf1 {[%clk 0:00:03.9]} 31... Nd7 {[%clk 0:00:03.5]} 32. Qh5 {[%clk
0:00:03.4]} 32... Nb8 {[%clk 0:00:02.4]} 33. e5 {[%clk 0:00:03.5]} 33... f5
{[%clk 0:00:02.3]} 34. Bxf5 {[%clk 0:00:02.4]} 34... exf5 {[%clk 0:00:01.5]} 35.
Nxf5 {[%clk 0:00:03]} 35... Rg6 {[%clk 0:00:01.5]} 36. Qh4 {[%clk 0:00:02.8]}
1-0

[Event "Late-Titled-Tuesday-Blitz-March-26-2024"]
[Site "Chess.com"]
[Date "2024.03.26"]
[Round "9"]
[White "simaopdias"]
[Black "Janh4"]
[Result "1-0"]
[WhiteElo "2286"]
[BlackElo "2159"]
[TimeControl "180+1"]
[EndTime "15:44:47 PDT"]
[Termination "simaopdias won on time"]

1. e4 {[%clk 0:03:00.3]} 1... c6 {[%clk 0:02:27.7]} 2. d4 {[%clk 0:03:00.2]}
2... d5 {[%clk 0:02:27.3]} 3. exd5 {[%clk 0:03:01.1]} 3... cxd5 {[%clk
0:02:27.1]} 4. c4 {[%clk 0:03:02]} 4... Nf6 {[%clk 0:02:27.2]} 5. Nc3 {[%clk
0:03:02.9]} 5... Nc6 {[%clk 0:02:27]} 6. Bg5 {[%clk 0:03:03.3]} 6... e6 {[%clk
0:02:23.7]} 7. Nf3 {[%clk 0:03:03.6]} 7... Be7 {[%clk 0:02:23.3]} 8. c5 {[%clk
0:03:03.3]} 8... O-O {[%clk 0:02:22.4]} 9. Bd3 {[%clk 0:03:03.7]} 9... h6 {[%clk
0:02:16.3]} 10. Bh4 {[%clk 0:03:03.4]} 10... Nh5 {[%clk 0:02:10.1]} 11. Bxe7
{[%clk 0:03:02.5]} 11... Qxe7 {[%clk 0:02:09.7]} 12. O-O {[%clk 0:03:01.2]}
12... a6 {[%clk 0:01:58.7]} 13. Re1 {[%clk 0:03:00]} 13... Rb8 {[%clk
0:01:46.6]} 14. Na4 {[%clk 0:02:55.9]} 14... Nf6 {[%clk 0:01:37.5]} 15. Nb6
{[%clk 0:02:54.6]} 15... Nd7 {[%clk 0:01:34.7]} 16. Na4 {[%clk 0:02:48.9]} 16...
Re8 {[%clk 0:01:30]} 17. Qd2 {[%clk 0:02:47.1]} 17... Qf6 {[%clk 0:01:26.8]} 18.
b4 {[%clk 0:02:44.5]} 18... e5 {[%clk 0:01:12.3]} 19. b5 {[%clk 0:02:38.9]}
19... axb5 {[%clk 0:01:06.7]} 20. Bxb5 {[%clk 0:02:39.8]} 20... e4 {[%clk
0:01:01.1]} 21. Nc3 {[%clk 0:02:27.3]} 21... Ne7 {[%clk 0:00:42.7]} 22. Ne5
{[%clk 0:02:23.2]} 22... Rd8 {[%clk 0:00:34.3]} 23. Bxd7 {[%clk 0:02:10.2]}
23... Bxd7 {[%clk 0:00:33.8]} 24. Rab1 {[%clk 0:02:10.4]} 24... Bc6 {[%clk
0:00:31.4]} 25. a4 {[%clk 0:02:08.1]} 25... Qe6 {[%clk 0:00:27.6]} 26. Nb5
{[%clk 0:02:07.3]} 26... f6 {[%clk 0:00:24.3]} 27. Nxc6 {[%clk 0:02:02.8]} 27...
bxc6 {[%clk 0:00:18.5]} 28. Nc3 {[%clk 0:02:01.3]} 28... Ra8 {[%clk 0:00:14.5]}
29. Rb7 {[%clk 0:01:59.7]} 29... Rd7 {[%clk 0:00:13.4]} 30. Reb1 {[%clk
0:01:59.1]} 30... Rxb7 {[%clk 0:00:11]} 31. Rxb7 {[%clk 0:01:58.8]} 31... Nf5
{[%clk 0:00:11.1]} 32. g3 {[%clk 0:01:42.4]} 32... g5 {[%clk 0:00:06.2]} 33. Rb3
{[%clk 0:01:24.9]} 33... e3 {[%clk 0:00:04.7]} 34. fxe3 {[%clk 0:01:24.2]} 34...
Nxe3 {[%clk 0:00:04.5]} 35. Nb5 {[%clk 0:01:14.6]} 35... Nc4 {[%clk 0:00:02.8]}
36. Qf2 {[%clk 0:01:06]} 36... cxb5 {[%clk 0:00:03]} 37. axb5 {[%clk 0:01:05.9]}
37... Ra1+ {[%clk 0:00:03.5]} 38. Kg2 {[%clk 0:01:05.9]} 38... Nd2 {[%clk
0:00:03.7]} 39. Re3 {[%clk 0:01:03.2]} 39... Qg4 {[%clk 0:00:03]} 40. Qxf6
{[%clk 0:00:57.4]} 40... Ne4 {[%clk 0:00:02.5]} 41. Qd8+ {[%clk 0:00:51.1]}
41... Kg7 {[%clk 0:00:02.3]} 42. Qe7+ {[%clk 0:00:51.3]} 42... Kg8 {[%clk
0:00:02.3]} 43. Qd8+ {[%clk 0:00:49.4]} 43... Kg7 {[%clk 0:00:02.6]} 44. Qc7+
{[%clk 0:00:48.4]} 44... Kg8 {[%clk 0:00:02.1]} 45. Qb8+ {[%clk 0:00:48.3]}
45... Kg7 {[%clk 0:00:01.8]} 46. Qe5+ {[%clk 0:00:48.8]} 46... Kg8 {[%clk
0:00:01.5]} 47. Qxd5+ {[%clk 0:00:39.3]} 47... Kf8 {[%clk 0:00:01.4]} 48. Rf3+
{[%clk 0:00:38.7]} 1-0

[Event "Late-Titled-Tuesday-Blitz-March-26-2024"]
[Site "Chess.com"]
[Date "2024.03.26"]
[Round "9"]
[White "TigrVShlyape"]
[Black "CarlosjPineror"]
[Result "1/2-1/2"]
[WhiteElo "2912"]
[BlackElo "2744"]
[TimeControl "180+1"]
[EndTime "15:44:51 PDT"]
[Termination "Game drawn by repetition"]

1. e4 {[%clk 0:03:00.9]} 1... c5 {[%clk 0:03:00.4]} 2. Nf3 {[%clk 0:03:00.4]}
2... e6 {[%clk 0:03:01]} 3. d4 {[%clk 0:02:59.9]} 3... cxd4 {[%clk 0:03:01.9]}
4. Nxd4 {[%clk 0:02:59.7]} 4... a6 {[%clk 0:03:02.6]} 5. Nc3 {[%clk 0:02:55.8]}
5... Qc7 {[%clk 0:03:02.1]} 6. Qf3 {[%clk 0:02:53.5]} 6... Nf6 {[%clk
0:03:02.3]} 7. Qg3 {[%clk 0:02:47.5]} 7... d6 {[%clk 0:03:00.3]} 8. Bd3 {[%clk
0:02:41.5]} 8... Nc6 {[%clk 0:02:54.3]} 9. Be3 {[%clk 0:02:38.4]} 9... Nxd4
{[%clk 0:02:42.6]} 10. Bxd4 {[%clk 0:02:37.4]} 10... e5 {[%clk 0:02:43.3]} 11.
Be3 {[%clk 0:02:34.3]} 11... h6 {[%clk 0:02:43.3]} 12. a4 {[%clk 0:02:26.2]}
12... Be6 {[%clk 0:02:41.7]} 13. O-O {[%clk 0:02:21.4]} 13... g5 {[%clk
0:02:39.7]} 14. f3 {[%clk 0:01:59.6]} 14... Be7 {[%clk 0:02:38.5]} 15. Qf2
{[%clk 0:01:56.9]} 15... Rc8 {[%clk 0:02:38.6]} 16. Rfd1 {[%clk 0:01:55.8]}
16... O-O {[%clk 0:02:28.6]} 17. a5 {[%clk 0:01:52.8]} 17... Kg7 {[%clk
0:02:24.9]} 18. Na4 {[%clk 0:01:50.5]} 18... Nd7 {[%clk 0:02:21.3]} 19. b3
{[%clk 0:01:44.6]} 19... Rfd8 {[%clk 0:02:18.5]} 20. c4 {[%clk 0:01:43.6]} 20...
Rf8 {[%clk 0:02:13.7]} 21. Bc2 {[%clk 0:01:41.3]} 21... h5 {[%clk 0:01:47.5]}
22. Nc3 {[%clk 0:01:40.5]} 22... Nc5 {[%clk 0:01:44.6]} 23. Qd2 {[%clk 0:01:25]}
23... f6 {[%clk 0:01:41.9]} 24. Nd5 {[%clk 0:01:15]} 24... Qd8 {[%clk
0:01:41.7]} 25. b4 {[%clk 0:01:11.9]} 25... Nd7 {[%clk 0:01:37.9]} 26. Nxe7
{[%clk 0:01:08.3]} 26... Qxe7 {[%clk 0:01:37.2]} 27. Qxd6 {[%clk 0:01:08.4]}
27... Qf7 {[%clk 0:01:34.5]} 28. c5 {[%clk 0:01:08]} 28... Rfd8 {[%clk
0:01:31.9]} 29. Qd2 {[%clk 0:01:03.9]} 29... Nxc5 {[%clk 0:01:28.9]} 30. Qxd8
{[%clk 0:01:03.3]} 30... Rxd8 {[%clk 0:01:28.6]} 31. Rxd8 {[%clk 0:01:04]} 31...
Nd7 {[%clk 0:01:15]} 32. Ba4 {[%clk 0:01:02.3]} 32... Qe7 {[%clk 0:01:12.1]} 33.
Rc8 {[%clk 0:00:46.8]} 33... Qxb4 {[%clk 0:01:10]} 34. Bxd7 {[%clk 0:00:42.3]}
34... Bxd7 {[%clk 0:00:35.8]} 35. Rc7 {[%clk 0:00:41.8]} 35... Kg6 {[%clk
0:00:35.2]} 36. Rxd7 {[%clk 0:00:30.1]} 36... Qc3 {[%clk 0:00:35.3]} 37. Rb1
{[%clk 0:00:29.6]} 37... Qxe3+ {[%clk 0:00:35.3]} 38. Kh1 {[%clk 0:00:29.6]}
38... Qc3 {[%clk 0:00:30.7]} 39. Rdxb7 {[%clk 0:00:28.6]} 39... Qxa5 {[%clk
0:00:30.7]} 40. h3 {[%clk 0:00:23.3]} 40... g4 {[%clk 0:00:30]} 41. hxg4 {[%clk
0:00:20.7]} 41... hxg4 {[%clk 0:00:30.9]} 42. fxg4 {[%clk 0:00:15.8]} 42... Qa4
{[%clk 0:00:28.9]} 43. R7b6 {[%clk 0:00:14.3]} 43... Qxe4 {[%clk 0:00:27.1]} 44.
Rf1 {[%clk 0:00:14]} 44... Kg5 {[%clk 0:00:20.3]} 45. Rxa6 {[%clk 0:00:12.7]}
45... Qxg4 {[%clk 0:00:18.7]} 46. Raxf6 {[%clk 0:00:12.6]} 46... Qh4+ {[%clk
0:00:18.8]} 47. Kg1 {[%clk 0:00:12.3]} 47... Qd4+ {[%clk 0:00:19.4]} 48. Kh2
{[%clk 0:00:12.6]} 48... Qh4+ {[%clk 0:00:19]} 49. Kg1 {[%clk 0:00:12.9]} 49...
Qd4+ {[%clk 0:00:19.7]} 50. Kh2 {[%clk 0:00:12.4]} 50... Qh4+ {[%clk 0:00:20.2]}
51. Kg1 {[%clk 0:00:12.6]} 1/2-1/2

[Event "Late-Titled-Tuesday-Blitz-March-26-2024"]
[Site "Chess.com"]
[Date "2024.03.26"]
[Round "9"]
[White "stepanosinovsky"]
[Black "JackRodgers"]
[Result "1-0"]
[WhiteElo "2395"]
[BlackElo "2531"]
[TimeControl "180+1"]
[EndTime "15:44:54 PDT"]
[Termination "stepanosinovsky won by checkmate"]

1. e4 {[%clk 0:03:00.9]} 1... g6 {[%clk 0:02:59.8]} 2. d4 {[%clk 0:02:59.8]}
2... Bg7 {[%clk 0:02:59.9]} 3. Nc3 {[%clk 0:03:00]} 3... d6 {[%clk 0:02:59.5]}
4. f4 {[%clk 0:02:58.9]} 4... Nd7 {[%clk 0:02:56.1]} 5. Nf3 {[%clk 0:02:57.9]}
5... c5 {[%clk 0:02:54.5]} 6. d5 {[%clk 0:02:40.4]} 6... Ngf6 {[%clk 0:02:52.8]}
7. Be2 {[%clk 0:02:25.9]} 7... O-O {[%clk 0:02:52.3]} 8. O-O {[%clk 0:02:26]}
8... a6 {[%clk 0:02:40.3]} 9. a4 {[%clk 0:02:25.5]} 9... Re8 {[%clk 0:02:38.7]}
10. e5 {[%clk 0:02:11.3]} 10... dxe5 {[%clk 0:02:31.2]} 11. fxe5 {[%clk
0:02:12.2]} 11... Ng4 {[%clk 0:02:31]} 12. e6 {[%clk 0:02:06.5]} 12... fxe6
{[%clk 0:02:30.8]} 13. Ng5 {[%clk 0:02:01.1]} 13... Bd4+ {[%clk 0:02:20.9]} 14.
Kh1 {[%clk 0:02:01.6]} 14... Nf2+ {[%clk 0:02:15.2]} 15. Rxf2 {[%clk 0:02:01.6]}
15... Bxf2 {[%clk 0:02:16.1]} 16. Nxe6 {[%clk 0:01:55.2]} 16... Qa5 {[%clk
0:02:09.9]} 17. Bd3 {[%clk 0:01:20.3]} 17... Nf8 {[%clk 0:01:47.1]} 18. Qf3
{[%clk 0:00:46.9]} 18... Bd4 {[%clk 0:01:38.5]} 19. Ng5 {[%clk 0:00:16.4]} 19...
Bf6 {[%clk 0:01:26]} 20. Nge4 {[%clk 0:00:15.9]} 20... Nd7 {[%clk 0:01:23.4]}
21. Bd2 {[%clk 0:00:14.6]} 21... Qd8 {[%clk 0:01:18.9]} 22. Re1 {[%clk
0:00:13.2]} 22... Ne5 {[%clk 0:01:17.1]} 23. Qg3 {[%clk 0:00:13.2]} 23... Nxd3
{[%clk 0:01:15.9]} 24. cxd3 {[%clk 0:00:13]} 24... b6 {[%clk 0:01:06.4]} 25. d6
{[%clk 0:00:12.7]} 25... Bf5 {[%clk 0:01:02.9]} 26. Nd5 {[%clk 0:00:10.8]} 26...
Bxe4 {[%clk 0:00:52.8]} 27. dxe4 {[%clk 0:00:08.6]} 27... Bxb2 {[%clk
0:00:39.8]} 28. Nxe7+ {[%clk 0:00:06.5]} 28... Rxe7 {[%clk 0:00:38.6]} 29. dxe7
{[%clk 0:00:05.8]} 29... Qxe7 {[%clk 0:00:39.5]} 30. Qb3+ {[%clk 0:00:04.2]}
30... Qf7 {[%clk 0:00:34.6]} 31. Qxb2 {[%clk 0:00:05]} 31... Rf8 {[%clk
0:00:32.2]} 32. h3 {[%clk 0:00:04.7]} 32... Qe6 {[%clk 0:00:30.6]} 33. Bc1
{[%clk 0:00:03.6]} 33... Rf7 {[%clk 0:00:29.6]} 34. Qc3 {[%clk 0:00:03.9]} 34...
h5 {[%clk 0:00:29.6]} 35. Bb2 {[%clk 0:00:04.2]} 35... Kf8 {[%clk 0:00:30.3]}
36. Qh8+ {[%clk 0:00:03.9]} 36... Ke7 {[%clk 0:00:31.2]} 37. Qb8 {[%clk
0:00:04.1]} 37... Qc6 {[%clk 0:00:29.2]} 38. Qe5+ {[%clk 0:00:02.9]} 38... Kf8
{[%clk 0:00:24.5]} 39. Rd1 {[%clk 0:00:02.9]} 39... Rd7 {[%clk 0:00:20.3]} 40.
Qh8+ {[%clk 0:00:02.8]} 40... Ke7 {[%clk 0:00:18]} 41. Qg7+ {[%clk 0:00:02.8]}
41... Kd8 {[%clk 0:00:17.6]} 42. Qh8+ {[%clk 0:00:02]} 42... Kc7 {[%clk
0:00:16.7]} 43. Be5+ {[%clk 0:00:02.1]} 43... Kb7 {[%clk 0:00:16.6]} 44. Qb8#
{[%clk 0:00:02.2]} 1-0

[Event "Late-Titled-Tuesday-Blitz-March-26-2024"]
[Site "Chess.com"]
[Date "2024.03.26"]
[Round "9"]
[White "Vahe_Danielyan"]
[Black "sorch29"]
[Result "1-0"]
[WhiteElo "2596"]
[BlackElo "2453"]
[TimeControl "180+1"]
[EndTime "15:44:55 PDT"]
[Termination "Vahe_Danielyan won by checkmate"]

1. d4 {[%clk 0:02:54.3]} 1... Nf6 {[%clk 0:02:58.8]} 2. c4 {[%clk 0:02:54.9]}
2... g6 {[%clk 0:02:59]} 3. Nc3 {[%clk 0:02:54.4]} 3... d6 {[%clk 0:02:59.7]} 4.
Bg5 {[%clk 0:02:52.5]} 4... Bg7 {[%clk 0:03:00.1]} 5. e3 {[%clk 0:02:52.3]} 5...
O-O {[%clk 0:03:00.7]} 6. Nf3 {[%clk 0:02:52.2]} 6... c5 {[%clk 0:03:00.9]} 7.
d5 {[%clk 0:02:52.2]} 7... h6 {[%clk 0:02:55.9]} 8. Bh4 {[%clk 0:02:52]} 8... g5
{[%clk 0:02:37.1]} 9. Bg3 {[%clk 0:02:52.1]} 9... Nh5 {[%clk 0:02:37.8]} 10. Bd3
{[%clk 0:02:39.4]} 10... e6 {[%clk 0:02:25.2]} 11. dxe6 {[%clk 0:01:45]} 11...
Nxg3 {[%clk 0:02:23.1]} 12. exf7+ {[%clk 0:01:40.6]} 12... Rxf7 {[%clk 0:02:24]}
13. hxg3 {[%clk 0:01:41.1]} 13... Bxc3+ {[%clk 0:02:18.2]} 14. bxc3 {[%clk
0:01:40.4]} 14... Qf6 {[%clk 0:02:19.1]} 15. O-O {[%clk 0:01:35.7]} 15... Qxc3
{[%clk 0:02:12.3]} 16. Be4 {[%clk 0:01:34]} 16... Qf6 {[%clk 0:02:09.3]} 17. Rb1
{[%clk 0:01:32.8]} 17... Nc6 {[%clk 0:02:08.9]} 18. Bd5 {[%clk 0:01:27.5]} 18...
Be6 {[%clk 0:02:05.6]} 19. Bxc6 {[%clk 0:01:03.6]} 19... bxc6 {[%clk 0:02:04]}
20. Qxd6 {[%clk 0:01:04]} 20... Bxc4 {[%clk 0:02:03.8]} 21. Qxf6 {[%clk
0:01:04.6]} 21... Rxf6 {[%clk 0:02:04.3]} 22. Rfc1 {[%clk 0:01:05.2]} 22... Bxa2
{[%clk 0:02:03.6]} 23. Ra1 {[%clk 0:01:02.7]} 23... Bd5 {[%clk 0:02:00.4]} 24.
Nd2 {[%clk 0:00:48.4]} 24... Raf8 {[%clk 0:01:59]} 25. f3 {[%clk 0:00:47.5]}
25... Re8 {[%clk 0:01:27]} 26. e4 {[%clk 0:00:47]} 26... Bf7 {[%clk 0:01:26.6]}
27. Rxc5 {[%clk 0:00:47.1]} 27... Rd8 {[%clk 0:01:26.6]} 28. Nf1 {[%clk
0:00:43.2]} 28... Rd7 {[%clk 0:01:17.6]} 29. g4 {[%clk 0:00:41.3]} 29... Rfd6
{[%clk 0:01:16.7]} 30. Ne3 {[%clk 0:00:38.9]} 30... Rd2 {[%clk 0:01:14.9]} 31.
Rxc6 {[%clk 0:00:35.7]} 31... Re2 {[%clk 0:01:13.2]} 32. Rc3 {[%clk 0:00:20.4]}
32... Kh7 {[%clk 0:01:03.1]} 33. Ra6 {[%clk 0:00:09.8]} 33... Rb2 {[%clk
0:01:00.2]} 34. Rcc6 {[%clk 0:00:08.5]} 34... Re2 {[%clk 0:00:49.2]} 35. Rxh6+
{[%clk 0:00:08.3]} 35... Kg8 {[%clk 0:00:39.4]} 36. Ra3 {[%clk 0:00:07.4]} 36...
Rc7 {[%clk 0:00:34.9]} 37. Rha6 {[%clk 0:00:07.7]} 37... Rc1+ {[%clk 0:00:35.2]}
38. Kh2 {[%clk 0:00:08.3]} 38... Rce1 {[%clk 0:00:35.7]} 39. Nf5 {[%clk
0:00:06.9]} 39... Rf1 {[%clk 0:00:33.7]} 40. Nh6+ {[%clk 0:00:06.7]} 40... Kg7
{[%clk 0:00:32.9]} 41. Nxf7 {[%clk 0:00:07.6]} 41... Rff2 {[%clk 0:00:32.5]} 42.
Nxg5 {[%clk 0:00:04.6]} 42... Rxg2+ {[%clk 0:00:33.2]} 43. Kh3 {[%clk 0:00:05]}
43... Rg1 {[%clk 0:00:20.4]} 44. Kh4 {[%clk 0:00:04.7]} 44... Reg2 {[%clk
0:00:21.1]} 45. Nh3 {[%clk 0:00:05.4]} 45... Rh2 {[%clk 0:00:20.8]} 46. Rxa7+
{[%clk 0:00:06.3]} 46... Kf6 {[%clk 0:00:20.5]} 47. f4 {[%clk 0:00:05.6]} 47...
Rgh1 {[%clk 0:00:20.1]} 48. R3a6# {[%clk 0:00:06.5]} 1-0